Cogmind - Beta 13 @@@ ROGUE MODE // 2024.04.15 @ 20:06:48 Player: AntinDisguise Result: Destroyed by as-35964 with Assembled F-torch Performance ------------- Evolutions (1) 500 Regions Visited (3) 600 Robots Destroyed (45) 225 Value Destroyed (941) 941 Prototype IDs (4) 80 Alien Tech Used (0) 0 Bonus (0) 0 TOTAL SCORE: 2346 Bonus ------- None Cogmind --------- Core Integrity 0/400 Matter 235/300 Energy 8/100 System Corruption 6% Temperature Cool (20) Movement Treading (320) Ox2 Location -9/Mines Parts ------- > --- POWER (2) -------- (None) > --- PROPULSION (2) --- Light Treads Light Treads > --- UTILITY (3) ------ Huge Storage Unit Signal Interpreter Field Recycling Unit > --- WEAPON (2) ------- Heavy Assault Rifle > --- INVENTORY (25) --- Light Treads Light Treads Light Treads Heavy Assault Rifle Heavy Assault Rifle Maul Peak State ------------ > --- POWER ------------ Ion Engine > --- PROPULSION ------- Light Treads Light Treads > --- UTILITY ---------- Huge Storage Unit Experimental Sensor Array Signal Interpreter > --- WEAPON ----------- Advanced Beam Cannon Mining Laser > --- INVENTORY -------- Light Treads Light Treads Light Treads Light Treads Light Treads Field Recycling Unit Heavy Assault Rifle Heavy Assault Rifle Heavy Assault Rifle Maul [Rating: 19] Favorites ----------- Power Ion Engine Engine Ion Engine Propulsion Light Treads Treads Light Treads Wheel Compact Wheel Utility Signal Interpreter Device Field Recycling Unit Storage Huge Storage Unit Processor Signal Interpreter Weapon Advanced Beam Cannon Energy Gun Medium Laser Energy Cannon Advanced Beam Cannon Ballistic Gun Heavy Assault Rifle Special Weapon Mining Laser Impact Weapon Maul Build | -11 -10 -9 -9 ------- Run | Yrd Mat Mat Min Slots Evolved 2 | . . 2 . Power 1 | . . 1 . Propulsion . | . . . . Utility 1 | . . 1 . Weapon . | . . . . Parts Attached 35 | 7 6 14 8 Power 4 | 1 1 2 . Engine 4 | 1 1 2 . Core . | . . . . Reactor . | . . . . Propulsion 10 | 2 1 4 3 Treads 7 | . 1 3 3 Leg . | . . . . Wheel 3 | 2 . 1 . Hover . | . . . . Flight . | . . . . Utility 8 | 1 3 2 2 Device 3 | . . 1 2 Storage 4 | 1 2 1 . Processor 1 | . 1 . . Hackware . | . . . . Protection . | . . . . Artifact . | . . . . Weapon 13 | 3 1 6 3 Energy Gun 4 | 2 . 2 . Energy Cannon 1 | . . 1 . Ballistic Gun 5 | 1 1 2 1 Ballistic Cannon . | . . . . Launcher . | . . . . Special Weapon 1 | . . . 1 Impact Weapon 2 | . . 1 1 Slashing Weapon . | . . . . Piercing Weapon . | . . . . Special Melee Weapon . | . . . . Unidentified Prototypes 2 | . . 1 1 Parts Lost 10 | . 4 3 3 Power 4 | . 1 2 1 Propulsion 3 | . 1 1 1 Utility . | . . . . Weapon 3 | . 2 . 1 Highest Loss Streak 4 | . 4 1 3 To Critical Strikes . | . . . . Average Slot Usage (%) 93 | . 94 97 86 Engine 15 | . 13 20 10 Treads 14 | . 1 19 21 Wheel 8 | . 25 2 . Device 7 | . . 10 11 Storage 11 | . 14 11 11 Processor 11 | . 13 11 11 Energy Gun 6 | . 11 7 . Energy Cannon 5 | . . 6 10 Ballistic Gun 9 | . 13 6 7 Naked Turns . | . . . . Heaviest Build 103 | 14 14 103 100 Greatest Support 40 | 32 32 40 40 Greatest Overweight (x) 4 | . . 2 4 Average Overweight (x) . | . . . 2 Largest Inventory Capacity 25 | 8 25 25 25 Average Capacity 16 | 7 8 17 25 Most Carried 10 | 3 8 9 10 Average Carried 7 | 2 5 7 8 Final Capacity 25 | 8 8 25 25 Final Carried 8 | 3 8 8 6 Class Distribution -------------------- 100% | Mutant Dominant Class ---------------- Mutant | -10/Materials Mutant | -9/Materials Mutant | -9/Mines Resources | -11 -10 -9 -9 ----------- Run | Yrd Mat Mat Min Matter Collected 784 | 285 162 252 85 Remotely . | . . . . Salvage Created 1752 | 129 475 992 156 Parts 96 | 3 27 55 11 Haulers Intercepted 3 | . 2 1 . Recyclers Shooed 4 | 1 . 3 . Parts Field Recycled 1 | . . . 1 Retrieved Matter 1 | . . . 1 Parts Self-Destructed . | . . . . Prevented . | . . . . Kills | -11 -10 -9 -9 ------- Run | Yrd Mat Mat Min Combat Hostiles Destroyed 27 | . 9 13 5 Guns 20 | . 9 8 3 Cannons 6 | . . 4 2 Classes Destroyed 11 | 2 4 4 1 Worker 3 | . . 3 . Builder 2 | . 1 1 . Tunneler 2 | 1 . . 1 Hauler 3 | . 2 1 . Recycler 4 | 1 . 3 . Mechanic 2 | . . 2 . Watcher 2 | . . 2 . Swarmer 9 | . 3 3 3 Grunt 12 | . 6 5 1 Duelist 1 | . . . 1 Sentry 5 | . . 5 . Best Kill Streak 4 | 2 3 4 3 Combat Bots Only 3 | . 3 3 3 Max Kills in Single Turn 1 | 1 1 1 1 Gunslinging . | . . . . Exploded . | . . . . Melee . | . . . . Uniques/NPCs Destroyed . | . . . . Combat | -11 -10 -9 -9 -------- Run | Yrd Mat Mat Min Hostile Shots Fired 185 | . 55 80 50 Missed 50 | . 12 26 12 Damage Taken 2014 | . 555 731 728 Core 597 | . 192 157 248 Absorbed by Shields . | . . . . Regen/Repaired (Parts) 2 | . . 2 . Core Remaining (%) 61 | 100 23 . . Volleys Fired 128 | 5 54 48 21 Largest 2 | 2 2 2 2 Hottest 168 | 70 70 101 168 Shots Fired 219 | 10 87 87 35 Gun 177 | 10 87 66 14 Cannon 36 | . . 21 15 Launcher . | . . . . Special 6 | . . . 6 Kinetic 87 | 5 46 22 14 Thermal 113 | 5 41 46 21 Explosive . | . . . . Electromagnetic 19 | . . 19 . Robot Hit Streak 10 | 4 8 10 6 Robot Miss Streak 4 | 1 2 3 4 Penetration Max . | . . . . Secondary Targets 2 | . 2 . . Max Gunslinging Chain 1 | . 1 . . Shots Hit Robots 143 | 7 53 65 18 Core Hits 61 | 2 24 26 9 Critical Kills 2 | . . 2 . Critical Parts Destroyed . | . . . . Critical Strikes 7 | . 2 5 . Burn 4 | . 2 2 . Meltdown 1 | . . 1 . Destroy 1 | . . 1 . Smash 1 | . . 1 . Melee Attacks 17 | . . 15 2 Impact 17 | . . 15 2 Slashing . | . . . . Piercing . | . . . . Sneak Attacks 7 | . . 7 . Combat Hostiles . | . . . . Follow-up Attacks . | . . . . Damage Inflicted 2673 | 94 627 1557 395 Guns 1369 | 94 627 552 96 Cannons 452 | . . 268 184 Explosions 24 | . . 24 . Melee 780 | . . 713 67 Ramming . | . . . . Kinetic 621 | 45 319 161 96 Thermal 1068 | 49 308 479 232 Explosive . | . . . . Electromagnetic 204 | . . 204 . Impact 780 | . . 713 67 Slashing . | . . . . Piercing . | . . . . Highest Corruption 6 | . . 2 6 Average Corruption 2 | . . 2 2 Corruption Purged . | . . . . Corruption Blocked . | . . . . Effects 34 | . . 17 17 Message Errors 6 | . . 4 2 Matter Fused 11 | . . 5 6 Heat Flow Errors 3 | . . 1 2 Energy Discharges 3 | . . 1 2 Parts Fused 1 | . . 1 . Data Loss (minor) 5 | . . 2 3 Data Loss (major) 2 | . . 1 1 Weapon Failures 3 | . . 2 1 Overload Shots . | . . . . Overflow Damage 297 | . . 259 38 Projectiles 11 | . . . 11 Explosions . | . . . . Melee 286 | . . 259 27 Knockbacks 5 | . . 4 1 Impact 5 | . . 4 1 Kinetic . | . . . . Secondary . | . . . . Self-Inflicted Damage . | . . . . Shots . | . . . . Rammed . | . . . . Targets Rammed . | . . . . Kicked . | . . . . Crushed . | . . . . Highest Temperature 430 | 38 231 430 264 Average Temperature 103 | 14 74 130 74 Received Heat Transfer 648 | . 300 252 96 Effects 5 | . . 5 . Shutdowns 4 | . . 4 . Damage (minor) 1 | . . 1 . Siege Activations . | . . . . Robots Corrupted . | . . . . Combat Hostiles . | . . . . Parts Fried 3 | . . 3 . Impact Corruptions 12 | . . 11 1 Robots Melted 1 | . . 1 . Combat Hostiles . | . . . . Parts Melted 10 | . 4 6 . Heat Transferred 2814 | 148 1073 1160 433 Parts Sabotaged . | . . . . Parts Stolen . | . . . . Parts Stripped . | . . . . Power Chain Reactions 1 | . . 1 . Alert | -11 -10 -9 -9 ------- Run | Yrd Mat Mat Min Peak Influence 222 | 10 137 222 132 Initial 57 | . 6 57 36 Average 59 | 3 49 76 49 Maximum Alert Level 1 | . . 1 . Low Security (%) 99 | 100 100 97 100 Level 1 . | . . 2 . Level 2 . | . . . . Level 3 . | . . . . Level 4 . | . . . . Level 5 . | . . . . High Security . | . . . . Max Security . | . . . . Squads Dispatched 3 | . 1 2 . Investigation 2 | . 1 1 . Extermination . | . . . . Reinforcement 1 | . . 1 . Assault . | . . . . Garrison . | . . . . Intercept . | . . . . Searches Triggered . | . . . . Construction Impeded . | . . . . Haulers Reinforced . | . . . . Active Scanning Responses . | . . . . Cargo Convoy Interrupts . | . . . . Stealth | -11 -10 -9 -9 --------- Run | Yrd Mat Mat Min Distress Signals 2 | . 1 1 . Communications Jammed . | . . . . Distress Signals . | . . . . Times Spotted 53 | . 11 22 20 Peak Tracking Total 11 | . 3 4 11 Tactical Retreats 4 | . 2 2 . Traps | -11 -10 -9 -9 ------- Run | Yrd Mat Mat Min Traps Triggered 1 | . . 1 . Indirectly . | . . . . Trap Hack Attempts . | . . . . Triggered . | . . . . Disarmed 4 | . . 4 . Reprogrammed . | . . . . Reused . | . . . . Traps Extracted . | . . . . Installed . | . . . . Triggered . | . . . . Machines | -11 -10 -9 -9 ---------- Run | Yrd Mat Mat Min Machines Disabled 3 | . . 3 . Max in Single Turn 1 | . . 1 . Machines Repaired . | . . . . Machines Dismantled . | . . . . Machines Sabotaged . | . . . . Overloaded Fab Kills . | . . . . Hacking | -11 -10 -9 -9 --------- Run | Yrd Mat Mat Min Machines Accessed 9 | . 2 7 . Terminals 7 | . 2 5 . Fabricators . | . . . . Repair Stations 1 | . . 1 . Recycling Units . | . . . . Scanalyzers 1 | . . 1 . Garrison Access . | . . . . Total Hacks 31 | . 6 25 . Successful 14 | . 2 12 . Failed 17 | . 4 13 . Catastrophic 1 | . . 1 . Database Lockouts . | . . . . Manual . | . . . . Terminals 25 | . 6 19 . Fabricators . | . . . . Repair Stations 4 | . . 4 . Recycling Units . | . . . . Scanalyzers 2 | . . 2 . Garrison Access . | . . . . Terminal Hacks 10 | . 2 8 . Prototype ID Bank 1 | . . 1 . Emergency Access Points 1 | . . 1 . Unreport Threat 1 | . . 1 . Locate Traps 2 | . 1 1 . Disarm Traps 1 | . . 1 . Recall Investigation 1 | . . 1 . Hauler Manifests 1 | . . 1 . Zone Layout 2 | . 1 1 . Fabricator Hacks . | . . . . Repair Station Hacks 2 | . . 2 . Scan Component 1 | . . 1 . Repair 1 | . . 1 . Recycling Unit Hacks . | . . . . Scanalyzer 2 | . . 2 . Insert Component 1 | . . 1 . Analyze 1 | . . 1 . Garrison Access Hacks . | . . . . Unauthorized Hacks . | . . . . Terminals . | . . . . Fabricators . | . . . . Repair Stations . | . . . . Recycling Units . | . . . . Scanalyzers . | . . . . Garrison Access . | . . . . Data Cores Recovered . | . . . . Used . | . . . . Hacking Detections 8 | . 2 6 . Full Trace Events 4 | . 1 3 . Feedback Events . | . . . . Feedback Blocked . | . . . . Robot Schematics Acquired . | . . . . Robots Built . | . . . . Authchips . | . . . . Time . | . . . . Total Robot Build Rating . | . . . . Part Schematics Acquired 1 | . . 1 . Parts Built . | . . . . Authchips . | . . . . Time . | . . . . Total Part Build Rating . | . . . . Parts Repaired 1 | . . 1 . Time 26 | . . 26 . Parts Recycled . | . . . . Recycled Matter . | . . . . Retrieved Matter . | . . . . Retrieved Components . | . . . . Parts Scanalyzed 1 | . . 1 . Part Schematics Acquired 1 | . . 1 . Parts Damaged . | . . . . Bothacking | -11 -10 -9 -9 ------------ Run | Yrd Mat Mat Min Used RIF Installer . | . . . . Robots Hacked . | . . . . Non-combat . | . . . . Combat . | . . . . Robot Hacks Applied . | . . . . Relay Couplers Released . | . . . . Fabnet Peak Effective % . | . . . . Robots Rewired . | . . . . Allies Hacked . | . . . . Hacks Repelled . | . . . . Allies | -11 -10 -9 -9 -------- Run | Yrd Mat Mat Min Total Allies . | . . . . Largest Group . | . . . . Highest-Rated Group . | . . . . Highest-Rated Ally . | . . . . Total Orders . | . . . . Ally Attacks . | . . . . Total Damage . | . . . . Kills . | . . . . Allies Corrupted . | . . . . Allies Melted . | . . . . Intel | -11 -10 -9 -9 ------- Run | Yrd Mat Mat Min Robot Analysis Total . | . . . . Derelict Logs Recovered . | . . . . Drone Launches . | . . . . Drone Recoveries . | . . . . Exploration | -11 -10 -9 -9 ------------- Run | Yrd Mat Mat Min Turns Passed 3599 | 74 1136 1395 994 Spaces Moved 1447 | 47 599 526 275 Core 9 | 9 . . . Treads 782 | . 79 428 275 Legs . | . . . . Wheels 656 | 38 520 98 . Hover . | . . . . Flight . | . . . . Fastest Speed 50 | 50 100 100 320 Average Speed 187 | 90 107 215 322 Slowest Speed 480 | 100 160 320 480 Overloaded Moves . | . . . . Propulsion Burnouts . | . . . . Robots Hopped . | . . . . Cave-ins Triggered . | . . . . Exploration Rate (%) 39 | 5 54 44 53 Regions Visited 3 Branch Regions 1 Pre-discovered Areas 1 | . . . 1 Known Exits Taken 2 | . 1 1 . Unknown Exits Taken 1 | 1 . . . Scrap Searched 1 | . . . 1 Spaces Dug 1 | . . . 1 Terrain Destroyed 7 | . . 4 3 Melee . | . . . . Projectile 3 | . . . 3 AOE 4 | . . 4 . Terrain Rammed . | . . . . Walls Destroyed . | . . . . Machines Disabled . | . . . . Actions | -11 -10 -9 -9 --------- Run | Yrd Mat Mat Min Total 2074 | 69 1004 671 330 Wait 403 | . 334 50 19 Move 1444 | 46 598 525 275 Hop . | . . . . Pick Up 35 | 10 10 12 3 Fast Attach 2 | . 1 1 . Attach 24 | 7 3 8 6 Detach 1 | . . . 1 Swap 9 | . 2 5 2 Drop 11 | 1 2 7 1 Fire 128 | 5 54 48 21 Melee 17 | . . 15 2 Ram . | . . . . Kick . | . . . . Crush . | . . . . Escape Stasis . | . . . . Rewire . | . . . . Trap . | . . . . Miscellaneous . | . . . . Route ------- -11/Scrapyard -10/Materials (discovered 2 exits: *Mat / *Sub) -9/Materials (discovered 2 exits: [*Mat] / *Min) -9/Mines (discovered 1 exit: [*Mat]) History --------- Turn | Location | Event 17 | -11/Scrapyard | Discovered new exit (range 16) 75 | -11/Scrapyard | Entered Materials 314 | -10/Materials | Build established: Mutant 350 | -10/Materials | Discovered new exit (range 15) 375 | -10/Materials | Identified exit to Materials 708 | -10/Materials | Discovered new exit (range 5) 712 | -10/Materials | Identified exit to Subcaves 979 | -10/Materials | Core integrity fell below 50% 1019 | -10/Materials | Lost 4 parts (1p1n2w) 1211 | -10/Materials | Entered another Materials area 1211 | -9/Materials | Evolved 2 slots: Power x1, Utility x1 1871 | -9/Materials | Repaired Lgt. Treads 2118 | -9/Materials | Discovered new exit (range 19) 2540 | -9/Materials | Discovered new exit (range 7) 2603 | -9/Materials | Identified exit to Mines 2606 | -9/Materials | Entered Mines 3113 | -9/Mines | Learned location of Storage (-8) 3445 | -9/Mines | Discovered new exit (range 13) 3449 | -9/Mines | Found a damaged Exp. Sensor Array with a note attached 3455 | -9/Mines | Found Prototype Device 3461 | -9/Mines | Identified Exp. Sensor Array 3558 | -9/Mines | Assembled infested the area 3566 | -9/Mines | Core integrity fell below 50% 3581 | -9/Mines | Core integrity fell below 20% 3600 | -9/Mines | Destroyed by as-35964 with Assembled F-torch Last Messages --------------- as-39595 destroyed. as-31663 destroyed. D-53 Grenadier destroyed. Destroyed Asb. Hover Unit. as-09767 system corrupted by crushing effect. as-09767 knocked back. as-60088 destroyed. as-70718 destroyed. as-60136 destroyed. as-96217 destroyed. The unstable cave ceiling collapses. as-09767 destroyed. Acquired 1 matter. D-53 Grenadier destroyed. K-01 Serf collects debris. The unstable cave ceiling collapses. System corrupted: Component data lost. K-01 Serf collects debris. as-73341 sneak attacks. K-01 Serf destroyed. Map ----- +----------------------------------------------------+ | | | | | | | | | | | | | | | ??????????????????????????????????????????? | | ????#####?????????????????##??????????????? | | ???## ####????????????? ##?????????????? | | ??## ##???????????? #?????????????? | | ?## #??????????? #?????????????? | | ?# < #??????????? #?????????????? | | ?# ## ######?????? ## ???????????? | | ?## ### ##????# # ??????????? | | ??### ##?# ### #???? ???? ?????? | | ????# #??# ### ##### # ?????? | | ????# #### ## % ????? | | ????# ## " % ????? | | ????# # #??????? | | ???## # #????????? | | ??## #### #???????????? | | ??# #####?# a #????????????? | | ??# ##?????# aa%a ##????????????? | | ??## ##?????## * #####?????????????? | | ???### ######### @ ##?????????????????? | | ?????# ####???????????????? | | ?????# ######### ???????????????? | | ?????# ##??????### ### ####??????????????? | | ?????# ##??????####### #???##????????????? | | ?????# #??????## ## ## #### #???????? | | ????## ######## % = #???????? | | ????# =%! %! #????????????? | | ????# ###### =# ="#### ##????????????? | | ????# #????### ## ##???#???????????????? | | ????# ###????###### #????????????????????? | | ???## ##????????# #????????????????????? | | ???#[ ##???????# ###########??????????? | | ???# #???????# #??????????? | | ???# #???????# %######### #??????????? | | ???# ##???????# #???????# #??????????? | | ???##/! ##????????# %#?? ###?# ###????????? | | ????######???####?# # #?# #????????? | | ????????###### ### #?### #????????? | | ?????##### ##???# #????????? | | ?????# #######????# ##???????? | | ?????## ########?????????## ##??????? | | ??????### ##???????????????## #??????? | | ????????## #????????????????# ##?????? | | ??###????# #????????????????# #?????? | +----------------------------------------------------+ Best States ------------- Heat Dissipation 28 Energy Generation 15 Energy Capacity 400 Matter Stores 300 Matter Capacity 300 Sight Range 16 Terrain Scan Density 10 Evasion (%) 40 Recoil Reduction 2 Item Schematics ----------------- Lgt. Treads | -9/Materials | Scanalyzed Robot Schematics ------------------ None Fabricated ------------ Nothing Alien Tech Used ----------------- None Achievements -------------- None Challenges ------------ None Game ------ Seed SmallMetafieldJammer Manual? 0 Play Time 00:21:53 Cumulative 17.4 hours Start 2024.04.15 @ 19:45:45 End 2024.04.15 @ 20:06:48 Sessions 1 Manual Loads 0 Difficulty Rogue Special Mode None Game No. 40 Rogue 38 Adventurer 2 Explorer 0 Win Type - Total 0 Types 0/0/0/0/0/0/0/0/0 Lore% 16 Gallery% 25 Achievement% 19 Wizard Run 0 Options --------- Layout 1 ASCII 0 Keyboard 0 Movement Mouse Keybinds 0 Fullscreen 1 Font 16/SmallcapsGlow Map View 27x19 Zoom Use 96% Tactical HUD 0 Map Filters NONE Filters NONE Steam 1 RUN: fb34c9d4-3cea-4f36-8d5f-c8bbdecb6a18